bitfinex/quotes_SOLUSD_20260108
["timestamp","ask_amount","ask_price","bid_price","bid_amount"]
[1767862315483,0.68378903,135.39,135.36,4.25238052]
[1767862315776,0.68378903,135.39,135.36,11.64005508]
[1767862315973,0.68378903,135.39,135.36,7.38767456]
[1767862316174,0.68378903,135.39,135.36,11.30237565]
[1767862316373,0.68378903,135.39,135.36,11.64005508]
[1767862316882,0.68378903,135.39,135.36,7.72535399]
[1767862317056,4.95121421,135.38,135.36,0.33767943]
[1767862317384,8.06990319,135.39,135.36,0.33767943]
[1767862317587,4.95033607,135.38,135.35,17.73238052]
[1767862317786,8.06990319,135.39,135.35,17.73238052]
[1767862317787,4.95033607,135.37,135.35,17.73238052]
[1767862317956,8.06990319,135.39,135.35,17.73238052]
[1767862318151,0.68378903,135.37,135.34,3.91470109]
[1767862318360,5.63610614,135.37,135.34,4.25238052]
[1767862318666,0.68378903,135.37,135.34,4.25238052]
[1767862319059,5.63356131,135.37,135.34,4.25238052]
[1767862319260,0.68378903,135.37,135.34,4.25238052]
[1767862319669,5.63256714,135.37,135.34,4.25238052]
[1767862319862,0.68378903,135.37,135.34,4.25238052]
[1767862320275,0.68378903,135.36,135.32,3.91470109]
[1767862320487,0.68378903,135.34,135.3,13.81767943]
[1767862320792,0.68378903,135.33,135.3,13.81767943]
[1767862320975,0.68378903,135.33,135.3,13.48]
[1767862321280,0.68378903,135.33,135.29,4.25238052]
[1767862321459,5.62564684,135.33,135.3,0.33767943]
[1767862321865,0.68378903,135.33,135.3,0.33767943]
[1767862322766,0.68378903,135.33,135.28,0.49528718]
[1767862322767,0.66694014,135.32,135.28,0.49528718]
[1767862322967,0.66694014,135.31,135.28,0.49528718]
[1767862323573,0.66694014,135.3,135.28,0.15760775]
[1767862323778,3.91470109,135.31,135.28,0.15760775]
[1767862323974,4.58164123,135.31,135.28,0.15760775]
[1767862324177,0.66694014,135.31,135.28,0.15760775]
[1767862324378,4.58164123,135.31,135.28,0.15760775]
[1767862324582,0.66694014,135.3,135.28,0.15760775]
[1767862324794,4.58164123,135.3,135.28,0.15760775]
[1767862324955,0.66694014,135.31,135.28,0.15760775]
[1767862325160,0.66694014,135.31,135.28,0.49528718]
[1767862325373,0.66694014,135.31,135.28,0.15760775]
[1767862326862,0.69714535,135.3,135.28,0.15760775]
[1767862327272,0.69714535,135.29,135.28,0.15760775]
[1767862327474,0.66714536,135.29,135.28,0.15760775]
[1767862329777,12.00293674,135.3,135.28,0.15760775]
[1767862329980,4.61184644,135.3,135.28,0.15760775]
[1767862330581,0.69714535,135.29,135.28,0.15760775]
[1767862330968,0.69714535,135.3,135.28,0.15760775]
[1767862331288,4.61184644,135.3,135.28,0.15760775]
[1767862332692,0.69714535,135.3,135.28,0.15760775]
[1767862332886,0.69714535,135.32,135.28,0.52528717]
[1767862333192,0.69714535,135.31,135.28,0.52528717]
[1767862333794,0.69714535,135.29,135.28,0.15760775]
[1767862334093,0.69714535,135.28,135.26,0.2]
[1767862334286,3.91470109,135.27,135.25,0.56767942]
[1767862335277,3.91470109,135.26,135.25,0.2]
[1767862335578,3.91470109,135.26,135.24,0.52528717]
[1767862336171,0.69714535,135.25,135.23,29.51999831]
[1767862336372,0.66714536,135.25,135.23,29.51999831]
[1767862336577,3.91470109,135.26,135.23,29.51999831]
[1767862336778,3.91470109,135.25,135.23,29.51999831]
[1767862339604,3.91470109,135.24,135.22,0.68811876]
[1767862339778,3.91470109,135.24,135.23,0.68811876]
[1767862340087,0.69714535,135.26,135.23,0.68811876]
[1767862340287,3.91470109,135.25,135.23,0.68811876]
[1767862340489,0.69714535,135.24,135.21,21.58367957]
[1767862340802,0.69714535,135.28,135.23,0.68811876]
[1767862341089,4.61184644,135.27,135.23,0.68811876]
[1767862342080,0.69714535,135.27,135.23,4.60281985]
[1767862342286,0.69714535,135.27,135.23,0.68811876]
[1767862342699,4.61184644,135.27,135.23,0.68811876]
[1767862342901,11.30737646,135.27,135.23,0.68811876]
[1767862343094,3.91470109,135.27,135.23,0.68811876]
[1767862344114,12.00465234,135.27,135.23,0.68811876]
[1767862344401,4.61184644,135.25,135.22,0.68811876]
[1767862345574,3.91470109,135.24,135.22,0.68811876]
[1767862345903,0.69714535,135.24,135.21,14.18811876]
[1767862346202,36.95622239,135.3,135.21,14.18811876]
[1767862346203,0.69714535,135.26,135.22,0.68811876]
[1767862346377,4.61184644,135.26,135.22,0.68811876]
[1767862347206,3.91470109,135.25,135.22,0.68811876]
[1767862350483,0.69714535,135.26,135.22,0.68811876]
[1767862351085,3.91470109,135.25,135.22,0.68811876]
[1767862351491,0.69714535,135.24,135.21,21.58370641]
[1767862351903,4.61184644,135.26,135.22,0.68811876]
[1767862352491,6.82879557,135.26,135.22,0.68811876]
[1767862353298,0.68369273,135.23,135.21,13.5]
[1767862353477,0.68369273,135.25,135.22,0.68741927]
[1767862354504,0.68369273,135.29,135.22,0.68741927]
[1767862354703,0.68369273,135.29,135.23,0.68741927]
[1767862354704,0.68369273,135.27,135.23,0.68741927]
[1767862354904,6.81534295,135.27,135.23,0.68741927]
[1767862355301,14.20796993,135.27,135.23,0.68741927]
[1767862355515,6.81534295,135.25,135.22,0.68741927]
[1767862356388,0.68369273,135.24,135.21,14.18741927]
[1767862356900,0.68369273,135.24,135.21,20.31906949]
[1767862357114,6.81534295,135.26,135.22,0.68741927]
[1767862357795,0.68369273,135.26,135.22,0.68741927]
[1767862357992,6.81534295,135.26,135.22,0.68741927]
[1767862358191,0.68369273,135.26,135.22,0.68741927]
[1767862358393,0.68369273,135.25,135.22,0.68741927]
[1767862359792,0.68369273,135.24,135.21,14.18741927]
[1767862361598,0.68369273,135.24,135.21,0.68741927]
[1767862364212,0.68369273,135.23,135.2,0.68741927]
[1767862364401,0.68369273,135.23,135.19,14.18741927]
[1767862364603,6.81534295,135.22,135.19,0.68741927]
[1767862365711,14.21070366,135.22,135.19,0.68741927]
[1767862366291,0.68369273,135.22,135.19,0.68741927]
[1767862366490,11.73575772,135.22,135.19,0.68741927]
[1767862366707,0.68369273,135.22,135.19,0.68741927]
[1767862366912,11.73576161,135.22,135.19,0.68741927]
[1767862367211,6.81534295,135.22,135.19,0.68741927]
[1767862367587,0.68369273,135.22,135.19,0.68741927]
[1767862367788,4.92127987,135.22,135.2,0.68741927]
[1767862368019,7.39388459,135.25,135.21,0.68741927]
[1767862368020,0.68369273,135.25,135.21,0.68741927]
[1767862368195,4.92162253,135.25,135.22,0.68741927]
[1767862368712,4.92162253,135.25,135.23,0.68741927]
[1767862368916,0.68369273,135.26,135.23,0.68741927]
[1767862369219,4.92318169,135.26,135.24,0.68741927]
[1767862370113,4.19818169,135.26,135.25,0.68741927]
[1767862370312,0.68369273,135.28,135.25,0.68741927]
[1767862370492,0.68369273,135.27,135.23,0.55528716]
[1767862371101,0.68369273,135.27,135.23,6.68693738]
[1767862371322,0.68369273,135.27,135.23,0.55528716]
[1767862372902,6.81534295,135.27,135.23,0.55528716]
[1767862376221,6.81534295,135.28,135.24,0.55528716]
[1767862376430,6.81534295,135.29,135.25,0.55528716]
[1767862377018,0.68369273,135.29,135.25,6.68693738]
[1767862377426,0.68369273,135.29,135.25,0.55528716]
[1767862378628,6.81534295,135.29,135.25,0.55528716]
[1767862379130,0.68369273,135.29,135.25,0.55528716]
[1767862379309,6.81534295,135.29,135.25,0.55528716]
[1767862380720,0.68369273,135.28,135.25,0.55528716]
[1767862380913,0.68369273,135.3,135.26,0.55528716]
[1767862381114,0.68369273,135.3,135.27,0.55528716]
[1767862381635,0.68369273,135.3,135.26,20.18693738]
[1767862382221,0.68369273,135.3,135.26,27.58010517]
[1767862382222,4.93967648,135.29,135.26,27.58010517]
[1767862382422,0.68369273,135.3,135.26,27.58010517]
[1767862382722,0.69838592,135.29,135.26,27.58010517]
[1767862383324,0.69838592,135.29,135.26,20.18693738]
[1767862385746,0.69838592,135.29,135.26,13.5]
[1767862386041,4.9382976,135.29,135.26,14.05528716]
[1767862386548,5.61789247,135.29,135.26,14.05528716]
[1767862387033,0.67959487,135.28,135.26,13.5]
[1767862387236,0.67959487,135.27,135.24,14.05528716]
[1767862387621,0.67959487,135.27,135.24,0.55528716]
[1767862389849,0.67959487,135.27,135.23,20.18693738]
[1767862390150,14.20410989,135.27,135.23,14.05528716]
[1767862390635,0.67959487,135.26,135.23,14.05528716]
[1767862391532,5.61091355,135.26,135.23,14.05528716]
[1767862391734,0.67959487,135.26,135.23,14.05528716]
[1767862392438,8.07245967,135.27,135.23,14.05528716]
[1767862392751,8.07245967,135.27,135.23,20.18693738]
[1767862392935,7.3928648,135.27,135.23,20.18693738]
[1767862393142,0.67959487,135.26,135.23,20.18693738]
[1767862393529,8.07277921,135.26,135.23,13.5]
[1767862393747,0.67959487,135.25,135.23,13.5]
[1767862394940,8.07277921,135.26,135.23,13.5]
[1767862395559,0.67959487,135.26,135.23,13.5]
[1767862395732,8.07283322,135.26,135.23,13.5]
[1767862395933,0.67959487,135.25,135.23,13.5]
[1767862396455,0.67959487,135.24,135.2,20.18693738]
[1767862396654,0.67959487,135.24,135.2,27.58329384]
[1767862396962,0.67959487,135.24,135.21,0.55528716]
[1767862399660,0.67959487,135.24,135.2,20.18693738]
[1767862399878,0.67959487,135.22,135.17,0.55528716]
[1767862400060,0.67959487,135.21,135.17,14.05528716]
[1767862400238,0.67959487,135.21,135.18,0.55528716]
[1767862400432,0.67959487,135.22,135.18,6.68693738]
[1767862400638,5.60765244,135.22,135.18,6.68693738]
[1767862401272,5.60765244,135.22,135.18,0.55528716]
[1767862401568,0.67959487,135.21,135.17,19.63165022]
[1767862401739,0.67959487,135.21,135.18,0.55528716]
[1767862402440,0.67959487,135.21,135.17,13.5]
[1767862402661,0.67959487,135.21,135.17,14.05528716]
[1767862403568,6.81124509,135.19,135.17,13.5]
[1767862403941,0.67959487,135.19,135.16,14.25528716]
[1767862404769,0.67959487,135.19,135.16,13.7]
[1767862404944,0.67959487,135.19,135.16,14.25528716]
[1767862407073,0.67959487,135.19,135.16,13.7]
[1767862407388,0.67959487,135.17,135.13,27.71378875]
[1767862407569,0.67959487,135.19,135.15,0.68186651]
[1767862407749,6.81124509,135.19,135.15,6.81351673]
[1767862407948,6.81124509,135.19,135.15,0.68186651]
[1767862408153,6.81124509,135.19,135.15,6.81351673]
[1767862408752,6.81124509,135.19,135.15,0.68186651]
[1767862408952,0.67959487,135.19,135.15,6.81351673]
[1767862409173,0.67959487,135.19,135.15,0.68186651]
[1767862409360,8.07661399,135.19,135.15,6.81351673]
[1767862410384,0.67959487,135.19,135.15,6.81351673]
[1767862410669,6.81124509,135.19,135.15,0.68186651]
[1767862411348,0.67959487,135.19,135.15,6.81351673]
[1767862411545,18.49037973,135.21,135.15,6.81351673]
[1767862411546,0.67959487,135.21,135.17,6.81351673]
[1767862411745,0.67959487,135.22,135.19,0.68186651]
[1767862411971,0.67959487,135.22,135.18,6.81351673]
[1767862412187,0.70779528,135.21,135.18,0.68186651]
[1767862412848,0.70779528,135.2,135.16,6.84958707]
[1767862413047,6.8394455,135.2,135.17,13.5]
[1767862413247,25.88052373,135.24,135.17,12.775]
[1767862413248,0.70779528,135.18,135.17,12.775]
[1767862413470,0.70779528,135.19,135.15,0.71793685]
[1767862413675,6.8394455,135.19,135.15,0.71793685]
[1767862413974,0.70779528,135.19,135.16,0.71793685]
[1767862415562,8.10336517,135.22,135.17,0.71793685]
[1767862415761,12.03058852,135.22,135.18,0.71793685]
[1767862416067,0.70779528,135.21,135.18,0.71793685]
[1767862416677,0.70779528,135.2,135.17,0.71793685]
[1767862417264,8.10432489,135.2,135.17,0.71793685]
[1767862417483,0.70779528,135.19,135.16,0.71793685]
[1767862418279,4.63501863,135.19,135.16,0.71793685]
[1767862418483,4.63501863,135.19,135.15,14.21793685]
[1767862418980,4.63501863,135.17,135.13,0.71793685]
[1767862419363,4.63501863,135.17,135.09,7.60216434]
[1767862419364,4.63501863,135.14,135.11,0.71793685]
[1767862419577,0.70779528,135.13,135.09,4.8451602]
[1767862419777,4.63501863,135.13,135.09,0.91793685]
[1767862420381,0.70779528,135.13,135.09,0.2]
[1767862420579,13.5,135.17,135.09,0.91793685]
[1767862420580,4.63501863,135.12,135.09,0.91793685]
[1767862420781,0.70779528,135.12,135.09,0.91793685]
[1767862421277,8.10819062,135.13,135.09,0.91793685]
[1767862421487,12.03541397,135.13,135.09,0.91793685]
[1767862421870,8.10819062,135.13,135.1,0.71793685]
[1767862422072,0.70779528,135.13,135.1,0.71793685]
[1767862423175,8.10770389,135.14,135.1,0.71793685]
[1767862423384,0.70779528,135.16,135.12,0.71793685]
[1767862423678,3.92722335,135.17,135.13,0.71793685]
[1767862423875,0.70779528,135.17,135.13,4.6451602]
[1767862424186,18.49302736,135.19,135.15,0.71793685]
[1767862424187,12.03206673,135.19,135.15,0.71793685]
[1767862424706,0.70779528,135.18,135.15,0.71793685]
[1767862426175,4.63501863,135.18,135.14,0.71793685]
[1767862426784,8.10541912,135.18,135.14,0.71793685]
[1767862427091,4.63501863,135.18,135.14,0.71793685]
[1767862427402,0.70779528,135.18,135.15,0.71793685]
[1767862427895,0.70779528,135.19,135.15,0.71793685]
[1767862428594,0.70779528,135.19,135.15,4.6451602]
[1767862428786,0.70779528,135.19,135.15,0.71793685]
[1767862430199,0.70779528,135.19,135.15,4.6451602]
[1767862431700,0.70779528,135.19,135.15,0.71793685]
[1767862431996,12.0320842,135.19,135.15,0.71793685]
[1767862432201,12.0320842,135.19,135.13,4.6451602]
[1767862432202,0.70779528,135.17,135.13,4.6451602]
[1767862432498,0.70779528,135.17,135.14,0.71793685]
[1767862432680,4.63501863,135.18,135.14,0.71793685]
[1767862433098,3.92722335,135.18,135.14,0.71793685]
[1767862433294,26.59735289,135.19,135.14,0.71793685]
[1767862433503,11.32482919,135.18,135.14,0.71793685]
[1767862433796,12.03227892,135.19,135.14,0.71793685]
[1767862433995,0.70779528,135.18,135.14,0.71793685]
[1767862434397,18.49167434,135.2,135.16,0.71793685]
[1767862434398,12.03147695,135.2,135.16,0.71793685]
[1767862434595,0.70779528,135.2,135.17,0.71793685]
[1767862436283,0.70779528,135.2,135.16,0.71793685]
[1767862436781,4.63501863,135.2,135.16,0.71793685]
[1767862437432,0.70779528,135.19,135.16,0.71793685]
[1767862437609,4.63501863,135.19,135.15,0.71793685]
[1767862438284,0.70779528,135.18,135.15,0.71793685]
[1767862439483,0.70779528,135.18,135.14,3.92722335]
[1767862439484,4.63501863,135.18,135.14,0.71793685]
[1767862439805,4.63501863,135.17,135.13,0.71793685]
[1767862440300,4.63501863,135.17,135.13,4.6451602]
[1767862440301,0.70779528,135.17,135.13,4.6451602]
[1767862440474,6.12246752,135.21,135.14,0.71793685]
[1767862440681,0.70779528,135.21,135.17,4.6451602]
[1767862440881,0.70779528,135.21,135.17,0.71793685]
[1767862440882,13.02648978,135.21,135.17,0.71793685]
[1767862441100,4.92240787,135.2,135.17,0.71793685]
[1767862441311,4.63501863,135.21,135.17,0.71793685]
[1767862442626,0.67976235,135.22,135.19,0.71026341]
[1767862442805,5.60862981,135.22,135.19,0.71026341]
[1767862443696,9.53585316,135.22,135.19,0.71026341]
[1767862443898,0.67976235,135.22,135.19,0.71026341]
[1767862444209,8.85732941,135.23,135.19,0.71026341]
[1767862444515,4.93010606,135.22,135.19,0.71026341]
[1767862444719,4.60253734,135.23,135.19,0.71026341]
[1767862444904,4.93182943,135.22,135.19,0.71026341]
[1767862447421,8.85905278,135.22,135.19,0.71026341]
[1767862447598,3.92722335,135.22,135.19,0.71026341]
[1767862448426,0.67531399,135.22,135.19,0.71026341]
[1767862448732,4.60253734,135.22,135.19,0.71026341]
[1767862449018,0.67531399,135.22,135.19,0.71026341]
[1767862449228,4.60253734,135.22,135.19,0.71026341]
[1767862449724,0.67531399,135.22,135.19,0.71026341]
[1767862449905,5.60720697,135.22,135.19,0.71026341]
[1767862450101,5.60720697,135.22,135.18,0.66296831]
[1767862452403,4.93189298,135.22,135.18,0.66296831]
[1767862452600,13.55659812,135.25,135.2,4.59019166]
[1767862452601,0.67531399,135.24,135.2,4.59019166]
[1767862452817,9.53391115,135.25,135.21,0.66296831]
[1767862453026,0.67531399,135.24,135.21,0.66296831]
[1767862453216,9.53431375,135.25,135.21,0.66296831]
[1767862453411,11.99625556,135.25,135.21,0.66296831]
[1767862453802,11.99579338,135.26,135.21,0.66296831]
[1767862454002,5.60545999,135.25,135.21,0.66296831]
[1767862454300,9.53268334,135.25,135.21,0.66296831]
[1767862454501,4.60253734,135.25,135.21,0.66296831]
[1767862455298,3.92722335,135.24,135.21,0.66296831]
[1767862455503,11.99631449,135.25,135.21,0.66296831]
[1767862455705,4.60253734,135.25,135.21,0.66296831]
[1767862456005,7.39337763,135.26,135.21,0.66296831]
[1767862456006,0.67531399,135.26,135.22,0.66296831]
[1767862456207,9.52990893,135.26,135.22,0.66296831]
[1767862456412,4.60253734,135.26,135.22,0.66296831]
[1767862456613,4.60253734,135.25,135.22,0.66296831]
[1767862457732,0.67531399,135.25,135.22,0.66296831]
[1767862463750,4.60253734,135.25,135.22,0.66296831]
[1767862465540,0.67531399,135.25,135.22,0.66296831]
[1767862471937,11.3204285,135.26,135.22,0.66296831]
[1767862472151,19.94695571,135.29,135.24,0.72443146]
[1767862472152,11.31875265,135.29,135.24,0.72443146]
[1767862472327,0.70464205,135.27,135.24,0.66443147]
[1767862472944,5.62894862,135.27,135.24,0.66443147]
[1767862473344,13.021853,135.27,135.24,0.66443147]
[1767862473545,8.09754643,135.27,135.24,0.66443147]
[1767862476451,8.09754643,135.27,135.22,6.12957139]
[1767862476657,0.70464205,135.25,135.22,0.72443146]
[1767862477446,8.09785556,135.26,135.22,0.72443146]
[1767862478053,0.70464205,135.26,135.22,0.72443146]
[1767862478256,0.70464205,135.28,135.24,0.72443146]
[1767862478556,0.70464205,135.25,135.22,0.72443146]
[1767862479554,6.83421344,135.25,135.22,0.72443146]
[1767862479752,0.70464205,135.25,135.22,0.72443146]
[1767862480251,0.70464205,135.25,135.22,6.85400285]
[1767862480550,0.70464205,135.25,135.22,0.72443146]
[1767862483358,5.64039324,135.25,135.22,0.72443146]
[1767862484660,13.03456587,135.25,135.22,0.72443146]
[1767862484957,0.70464205,135.24,135.21,14.22443146]
[1767862485556,6.83421344,135.25,135.22,0.72443146]
[1767862485756,0.70464205,135.25,135.22,0.72443146]
[1767862485956,5.64264477,135.25,135.22,0.72443146]
[1767862488443,5.64264477,135.25,135.22,6.85400285]
[1767862488760,5.64264477,135.25,135.23,0.72443146]
[1767862489980,5.64264477,135.25,135.22,6.85400285]
[1767862490147,0.70464205,135.24,135.22,6.12957139]
[1767862490471,0.70464205,135.24,135.21,20.35400285]
[1767862490681,0.70464205,135.24,135.21,13.5]
[1767862490962,0.70464205,135.24,135.21,14.22443146]
[1767862491169,0.70464205,135.24,135.21,20.35400285]
[1767862492071,5.64248578,135.24,135.21,20.35400285]
[1767862492270,0.70464205,135.24,135.21,20.35400285]
[1767862492654,0.70464205,135.24,135.21,14.22443146]
[1767862492853,6.83421344,135.25,135.22,0.72443146]
[1767862493673,0.70464205,135.26,135.23,0.72443146]
[1767862493891,11.77441298,135.25,135.22,0.72443146]
[1767862494055,6.83421344,135.25,135.22,0.72443146]
[1767862494689,0.70464205,135.24,135.21,14.22443146]
[1767862495193,5.64701002,135.24,135.21,14.22443146]
[1767862495680,0.70464205,135.22,135.21,13.5]
[1767862496255,5.64636905,135.23,135.21,13.5]
[1767862496464,0.70464205,135.22,135.18,0.72443146]
[1767862496669,13.52386852,135.24,135.17,0.72443146]
[1767862496670,6.83421344,135.2,135.17,0.72443146]
[1767862496870,6.80421345,135.2,135.17,0.72443146]
[1767862497071,6.80421345,135.2,135.17,14.22443146]
[1767862497759,0.67464206,135.2,135.17,14.22443146]
[1767862497959,6.12957139,135.21,135.18,0.72443146]
[1767862499280,6.12957139,135.22,135.18,0.72443146]
[1767862499889,6.83421344,135.21,135.18,0.72443146]
[1767862500069,6.12957139,135.19,135.17,14.22443146]
[1767862500483,6.83421344,135.2,135.17,14.22443146]
[1767862500682,4.94120132,135.19,135.17,14.22443146]
[1767862501177,5.64584337,135.19,135.17,13.5]
[1767862501383,6.83421344,135.19,135.17,13.5]
[1767862501601,6.12957139,135.19,135.17,14.22443146]
[1767862503686,6.12957139,135.2,135.17,14.22443146]
[1767862504283,0.70023312,135.18,135.15,0.66837534]
[1767862504476,6.12957139,135.17,135.13,0.66837534]
[1767862506987,0.70023312,135.16,135.13,0.66837534]
[1767862507201,0.70023312,135.22,135.16,0.66837534]
[1767862507511,11.05424915,135.22,135.18,0.66837534]
[1767862507679,6.12957139,135.22,135.18,0.66837534]
[1767862507880,6.12957139,135.22,135.19,0.66837534]
[1767862510704,8.09505411,135.23,135.19,0.66837534]
[1767862510879,6.12957139,135.22,135.19,0.66837534]
[1767862511998,8.09505411,135.23,135.19,0.66837534]
[1767862512175,14.2246255,135.23,135.19,0.66837534]
[1767862512679,6.12957139,135.23,135.19,0.66837534]
[1767862513080,0.70023312,135.24,135.2,0.66837534]
[1767862513081,6.12957139,135.24,135.2,0.66837534]
[1767862513593,8.09432452,135.25,135.2,0.66837534]
[1767862513594,6.82980451,135.25,135.2,0.66837534]
[1767862513794,5.62684475,135.24,135.2,0.66837534]
[1767862514088,0.70023312,135.25,135.21,0.66837534]
[1767862514280,11.75644616,135.25,135.21,0.66837534]
[1767862514486,6.82980451,135.25,135.21,0.66837534]
[1767862515581,0.70023312,135.25,135.21,0.66837534]
[1767862515799,11.75958309,135.25,135.21,0.66837534]
[1767862515997,6.82980451,135.25,135.21,0.66837534]
[1767862516513,0.70023312,135.24,135.2,14.16837534]
[1767862516719,0.70023312,135.23,135.2,14.16837534]
[1767862516928,6.82980451,135.24,135.2,14.16837534]
[1767862517093,0.70023312,135.23,135.2,14.16837534]
[1767862520322,6.82980451,135.24,135.21,0.66837534]
[1767862520530,6.82980451,135.25,135.21,0.66837534]
[1767862520701,0.70023312,135.27,135.23,6.79794673]
[1767862521028,0.70023312,135.27,135.24,13.5]
[1767862521190,11.75982188,135.27,135.24,14.16837534]
[1767862521397,0.70023312,135.27,135.24,14.16837534]
[1767862522014,5.63144701,135.27,135.24,14.16837534]
[1767862522694,5.63144701,135.27,135.24,13.5]
[1767862523521,6.82980451,135.26,135.24,13.5]
[1767862523921,0.70023312,135.25,135.21,0.66837534]
[1767862524113,7.39267112,135.27,135.19,0.66837534]
[1767862524114,0.70023312,135.22,135.19,0.66837534]
[1767862524323,6.82980451,135.22,135.2,13.5]
[1767862524721,0.70023312,135.22,135.2,13.5]
[1767862524902,6.82980451,135.22,135.2,13.5]
[1767862525309,0.70023312,135.22,135.2,13.5]
[1767862526128,0.70023312,135.22,135.19,6.79794673]
[1767862526427,0.70023312,135.22,135.2,13.5]
[1767862533230,0.70023312,135.22,135.2,12.775]
[1767862536925,3.92522965,135.23,135.2,13.47896741]
[1767862537128,4.62312345,135.24,135.2,13.47896741]
[1767862539253,0.6978938,135.24,135.2,17.40419706]
[1767862539455,0.6978938,135.24,135.21,0.70396741]
[1767862539749,12.01706847,135.25,135.21,0.70396741]
[1767862540647,0.12555084,135.25,135.22,0.70396741]
[1767862540855,0.12555084,135.25,135.22,14.20396741]
[1767862541153,5.06235188,135.25,135.22,14.20396741]
[1767862543817,4.93680104,135.25,135.22,14.20396741]
[1767862544049,7.39235719,135.28,135.23,0.70396741]
[1767862544050,4.62312345,135.27,135.23,0.70396741]
[1767862544237,4.9371058,135.26,135.23,0.70396741]
[1767862544438,0.12555084,135.26,135.23,0.70396741]
[1767862544634,4.93739894,135.26,135.23,0.70396741]
[1767862544834,3.92522965,135.27,135.23,0.70396741]
[1767862545032,4.93740031,135.26,135.24,14.20396741]
[1767862546029,3.92522965,135.27,135.24,14.20396741]
[1767862546229,4.93790907,135.26,135.24,14.20396741]
[1767862547427,8.86313872,135.26,135.24,14.20396741]
[1767862547635,3.92522965,135.26,135.24,14.20396741]
[1767862547838,3.92522965,135.27,135.24,14.20396741]
[1767862548043,4.93816333,135.26,135.24,14.20396741]
[1767862548924,4.93816333,135.26,135.25,0.70396741]
[1767862549548,4.93816333,135.26,135.24,14.20396741]
[1767862551348,4.93816333,135.26,135.2,18.49073467]
[1767862551349,0.68656085,135.24,135.22,13.5]
[1767862552124,4.62312345,135.25,135.22,13.5]
[1767862552324,0.6978938,135.25,135.22,13.5]
[1767862552554,5.6461384,135.25,135.22,14.20396741]
[1767862554362,4.9482446,135.25,135.23,0.70396741]
[1767862554862,11.44363036,135.27,135.23,0.70396741]
[1767862555034,4.94911312,135.26,135.23,0.70396741]
[1767862555229,4.22411312,135.25,135.24,0.70396741]
[1767862555434,8.09009192,135.28,135.24,0.70396741]
[1767862555661,12.01532157,135.28,135.24,0.70396741]
[1767862556858,4.62312345,135.28,135.24,0.70396741]
[1767862559059,25.33894753,135.3,135.24,0.70396741]
[1767862559276,3.92522965,135.28,135.24,0.70396741]
[1767862559476,12.01506104,135.29,135.25,0.70396741]
[1767862559966,11.31716724,135.29,135.25,0.70396741]
[1767862560152,7.39193759,135.29,135.25,0.70396741]
[1767862560351,12.01429618,135.3,135.25,0.70396741]
[1767862560660,4.62312345,135.3,135.26,0.70396741]
[1767862560875,12.0137665,135.31,135.26,0.64396741]
[1767862561051,8.08853685,135.31,135.26,3.92522965]
[1767862561243,0.6978938,135.31,135.26,3.92522965]
[1767862561447,8.08836447,135.31,135.27,3.92522965]
[1767862561646,8.08836447,135.31,135.27,13.5]
[1767862561865,12.01359412,135.31,135.27,13.5]
[1767862562365,3.92522965,135.3,135.27,13.5]
[1767862562568,0.68840807,135.28,135.23,13.5]
[1767862562757,7.39047067,135.31,135.21,0.69036054]
[1767862562758,3.92522965,135.25,135.21,0.69036054]
[1767862563084,4.61363772,135.25,135.21,0.69036054]
[1767862563244,3.92522965,135.24,135.21,0.69036054]
[1767862563658,8.08235019,135.25,135.21,0.69036054]
[1767862563855,3.92522965,135.24,135.21,0.69036054]
[1767862564055,12.00757984,135.25,135.21,0.69036054]
[1767862564762,3.92522965,135.24,135.21,0.69036054]
[1767862565463,3.92522965,135.25,135.21,0.69036054]
[1767862566165,4.63631438,135.24,135.2,0.68372426]
[1767862566377,4.63631438,135.23,135.19,0.68372426]
[1767862566669,0.71108473,135.23,135.19,0.68372426]
[1767862566870,4.63631438,135.23,135.19,0.68372426]
[1767862567066,4.63631438,135.22,135.19,0.68372426]
[1767862567267,0.71108473,135.22,135.18,0.68372426]
[1767862567463,3.92522965,135.21,135.18,0.68372426]
[1767862567847,3.92522965,135.21,135.16,11.32367792]
[1767862567848,3.92522965,135.19,135.16,0.68372426]
[1767862568771,3.89522966,135.19,135.16,0.68372426]
[1767862569069,3.86522967,135.19,135.16,0.68372426]
[1767862569372,3.92522965,135.19,135.16,0.68372426]
[1767862573169,4.63631438,135.19,135.15,0.68372426]
[1767862573570,3.92522965,135.18,135.15,0.68372426]
[1767862573749,4.63631438,135.18,135.15,0.68372426]
[1767862574270,4.63631438,135.17,135.13,0.68372426]
[1767862574658,3.92522965,135.17,135.13,0.68372426]
[1767862575267,4.63631438,135.18,135.14,0.68372426]
[1767862576371,18.49215914,135.2,135.11,13.5]
[1767862576573,18.49215914,135.2,135.13,0.66528716]
[1767862576574,3.92522965,135.17,135.13,0.66528716]
[1767862576781,4.63631438,135.18,135.14,0.66528716]
[1767862578887,0.71108473,135.17,135.13,3.92522965]
[1767862579192,4.63631438,135.17,135.13,0.66528716]
[1767862579579,3.92522965,135.17,135.13,8.06554835]
[1767862579775,4.63631438,135.18,135.14,0.66528716]
[1767862581965,0.71108473,135.18,135.14,4.59051681]